Workbook

Sheet WriteSvg
K3: FileName | L3: Include full path to specify directory. If no directory is given, file is saved to same folder as the Excel file. File must end with '.svg'
K4: testSvg.svg
F6: X (inches) | G6: Y (inches) | I6: Stroke Width | K6: Header
F7: 0.5 | G7: 2 | I7: 0.0005 | K7: <?xml version="1.0" encoding="utf-8"?>
F8: 1 | G8: 3 | K8: <!-- Generator: Adobe Illustrator 18.0.0, SVG Export Plug-In . SVG Version: 6.00 Build 0) -->
F9: 2 | G9: 4 | K9: <!DOCTYPE svg PUBLIC "-//W3C//DTD SVG 1.1//EN" "http://www.w3.org/Graphics/SVG/1.1/DTD/svg11.dtd">
F10: 5 | G10: 7 | K10: <svg version="1.1" id="Layer_1" xmlns="http://www.w3.org/2000/svg" xmlns:xlink="http://www.w3.org/1999/xlink" x="0px" y="0px"
F11: 6 | G11: 7 | K11: viewBox="0 0 1728 1296" enable-background="new 0 0 1728 1296" xml:space="preserve">
F12: 2 | G12: 8
F14: 0.5 | G14: 4
F15: 5 | G15: 5
I18: Instructions:
I19: Fill in x, y coordinates into the green columns at left. Input a file name in the box above. Click the blue 'write SVG' button. A SVG file will be created
I20: and lines will be drawn between each consecutive series of points. Leave a blank space between points to start a new line.

Sheet Rose Sample
A1: Rose Equation
A2: x=a*cos(kt)*cos(t) | D2: a | E2: k
A3: y=a*cos(kt)*sin(t) | D3: 1 | E3: 4 | K3: FileName | L3: Include full path to specify directory. If no directory is given, file is saved to same folder as the Excel file. File must end with '.svg'
K4: rose.svg
B6: Origin x | C6: origin y | D6: dt | E6: t | F6: X (inches) | G6: Y (inches) | I6: Stroke Width | K6: Header
B7: 2 | C7: 2 | D7: 0.05 | E7: 0 | F7: =$D$3*COS($E$3*E7)*COS(E7)+$B$7 -> 3 | G7: =$D$3*COS($E$3*E7)*SIN(E7)+$C$7 -> 2 | I7: 0.0005 | K7: <?xml version="1.0" encoding="utf-8"?>
E8: =E7+$D$7 -> 0.05 | F8: =$D$3*COS($E$3*E8)*COS(E8)+$B$7 -> 2.97884175 | G8: =$D$3*COS($E$3*E8)*SIN(E8)+$C$7 -> 2.048982913 | K8: <!-- Generator: Adobe Illustrator 18.0.0, SVG Export Plug-In . SVG Version: 6.00 Build 0) -->
E9: 0.1 | F9: 2.916459526 | G9: 2.091952666 | K9: <!DOCTYPE svg PUBLIC "-//W3C//DTD SVG 1.1//EN" "http://www.w3.org/Graphics/SVG/1.1/DTD/svg11.dtd">
E10: 0.15 | F10: 2.816067986 | G10: 2.123336613 | K10: <svg version="1.1" id="Layer_1" xmlns="http://www.w3.org/2000/svg" xmlns:xlink="http://www.w3.org/1999/xlink" x="0px" y="0px"
E11: 0.2 | F11: 2.68281896 | G11: 2.138414256 | K11: viewBox="0 0 1728 1296" enable-background="new 0 0 1728 1296" xml:space="preserve">
E12: 0.25 | F12: 2.523505616 | G12: 2.13367293
E13: 0.3 | F13: 2.346173585 | G13: 2.107084038
E14: 0.35 | F14: 2.159662496 | G14: 2.058281361
E15: 0.4 | F15: 1.973105459 | G15: 1.98862917
E16: 0.45 | F16: 1.795416532 | G16: 1.90117492
E17: 0.5 | F17: 1.634796793 | G17: 1.800488579
E18: 0.55 | F18: 1.498288366 | G18: 1.692397982
E19: 0.6 | F19: 1.391402704 | G19: 1.583636189
E20: 0.65 | F20: 1.317844746 | G20: 1.481422575
E21: 0.7 | F21: 1.279348604 | G21: 1.393003703
E22: 0.75 | F22: 1.27563351 | G22: 1.325182742
E23: 0.8 | F23: 1.304481332 | G23: 1.283867162
E24: 0.85 | F24: 1.361929487 | G24: 1.273663462
E25: 0.9 | F25: 1.442566029 | G25: 1.297545001
E26: 0.95 | F26: 1.539907458 | G26: 1.356614599
E27: 1 | F27: 1.646834844 | G27: 1.449977859
E28: 1.05 | F28: 1.756060409 | G28: 1.574736377
E29: 1.1 | F29: 1.860595002 | G29: 1.726102684
E30: 1.15 | F30: 1.954187101 | G30: 1.897631218
E31: 1.2 | F31: 2.031705935 | G31: 2.081552473
E32: 1.25 | F32: 2.08944503 | G32: 2.269191051
E33: 1.3 | F33: 2.125327661 | G33: 2.451443074
E34: 1.35 | F34: 2.139001984 | G34: 2.619284664
E35: 1.4 | F35: 2.131820717 | G35: 2.764281186
E36: 1.45 | F36: 2.106707554 | G36: 2.879066728
E37: 1.5 | F37: 2.067919759 | G37: 2.957765047
E38: 1.55 | F38: 2.020722921 | G38: 2.996326609
E39: 1.6 | F39: 1.970999475 | G39: 2.992761428
E40: 1.65 | F40: 1.924816753 | G40: 2.94725364
E41: 1.7 | F41: 1.88798292 | G41: 2.862150897
E42: 1.75 | F42: 1.865619897 | G42: 2.741829224
E43: 1.8 | F43: 1.861781307 | G43: 2.592441486
E44: 1.85 | F44: 1.879140634 | G44: 2.421564671
E45: 1.9 | F45: 1.918770314 | G45: 2.237767211
E46: 1.95 | F46: 1.980026738 | G46: 2.050122412
E47: 2 | F47: 2.060549379 | G47: 1.867697194
E48: 2.05 | F48: 2.156375045 | G48: 1.699046739
E49: 2.1 | F49: 2.262160854 | G49: 1.55174517
E50: 2.15 | F50: 2.371502621 | G50: 1.431980013
E51: 2.2 | F51: 2.477329145 | G51: 1.344234215
E52: 2.25 | F52: 2.572347997 | G52: 1.291073964
E53: 2.3 | F53: 2.649514929 | G53: 1.27305403
E54: 2.35 | F54: 2.702497373 | G54: 1.28874504
E55: 2.4 | F55: 2.726102637 | G55: 1.334879609
E56: 2.45 | F56: 2.716643394 | G56: 1.406606966
E57: 2.5 | F57: 2.672216799 | G57: 1.497839063
E58: 2.55 | F58: 2.59287873 | G58: 1.601665676
E59: 2.6 | F59: 2.480701101 | G59: 1.710811846
E60: 2.65 | F60: 2.339707288 | G60: 1.818108605
E61: 2.7 | F61: 2.175688255 | G61: 1.916947308
E62: 2.75 | F62: 1.995909317 | G62: 2.001689116
E63: 2.8 | F63: 1.808724282 | G63: 2.068004224
E64: 2.85 | F64: 1.62311947 | G64: 2.113119972
E65: 2.9 | F65: 1.448214544 | G65: 2.135962913
E66: 2.95 | F66: 1.292749848 | G66: 2.13718666
E67: 3 | F67: 1.164590913 | G67: 2.119084677
E68: 3.05 | F68: 1.070279845 | G68: 2.085394467
E69: 3.1 | F69: 1.014660606 | G69: 2.041006529
E70: 3.15 | F70: 1.000600736 | G70: 1.991597506
E71: 3.2 | F71: 1.028826332 | G71: 1.943211732
E72: =E71+$D$7 -> 3.25 | F72: =$D$3*COS($E$3*E72)*COS(E72)+$B$7 -> 1.097880225 | G72: =$D$3*COS($E$3*E72)*SIN(E72)+$C$7 -> 1.901818673
E73: 3.3 | F73: 1.204205895 | G73: 1.872875276
E74: 3.35 | F74: 1.342352046 | G74: 1.860921926
E75: 3.4 | F75: 1.505285505 | G75: 1.869238598
E76: 3.45 | F76: 1.684793559 | G76: 1.899583952
E77: 3.5 | F77: 1.871951518 | G77: 1.952034877
E78: 3.55 | F78: 2.057627387 | G78: 2.024937618
E79: 3.6 | F79: 2.232993401 | G79: 2.114974492
E80: 3.65 | F80: 2.390013883 | G80: 2.217342884
E81: 3.7 | F81: 2.52188046 | G81: 2.326035985
E82: 3.75 | F82: 2.623369026 | G82: 2.434208225
E83: 3.8 | F83: 2.691097742 | G83: 2.534602868
E84: 3.85 | F84: 2.723671548 | G84: 2.620015122
E85: 3.9 | F85: 2.721705654 | G85: 2.683761727
E86: 3.95 | F86: 2.687727991 | G86: 2.720127309
E87: 4 | F87: 2.62596801 | G87: 2.724759084
E88: 4.05 | F88: 2.542046176 | G88: 2.694984467
E89: 4.1 | F89: 2.442584525 | G89: 2.630030793
E90: 4.15 | F90: 2.334763406 | G90: 2.531132285
E91: 4.2 | F91: 2.225852663 | G91: 2.401516296
E92: 4.25 | F92: 2.122746923 | G92: 2.246268259
E93: 4.3 | F93: 2.031534155 | G93: 2.072082282
E94: 4.35 | F94: 1.957124397 | G94: 1.886911375
E95: 4.4 | F95: 1.902961566 | G95: 1.699537588
E96: 4.45 | F96: 1.870835886 | G96: 1.519087314
E97: 4.5 | F97: 1.860808012 | G97: 1.35452053
E98: 4.55 | F98: 1.871248746 | G98: 1.214124455
E99: 4.6 | F99: 1.898990929 | G99: 1.105041963
E100: 4.65 | F100: 1.939582906 | G100: 1.032863099
E101: 4.7 | F101: 1.987626545 | G101: 1.001304292
E102: 4.75 | F102: 2.037177422 | G102: 1.011994605
E103: 4.8 | F103: 2.082180826 | G103: 1.064381931
E104: 4.85 | F104: 2.116915 | G104: 1.155764791
E105: 4.9 | F105: 2.136412554 | G105: 1.281447819
E106: 4.95 | F106: 2.136832367 | G106: 1.435011547
E107: 5 | F107: 2.11575745 | G107: 1.608680205
E108: 5.05 | F108: 2.072398913 | G108: 1.79376539
E109: 5.1 | F109: 2.007692166 | G109: 1.98115889
E110: 5.15 | F110: 1.924278285 | G110: 2.161845105
E111: 5.2 | F111: 1.826370849 | G111: 2.327402399
E112: 5.25 | F112: 1.7195158 | G112: 2.470463555
E113: 5.3 | F113: 1.610258788 | G113: 2.585108112
E114: 5.35 | F114: 1.505740392 | G114: 2.667163676
E115: 5.4 | F115: 1.41324435 | G115: 2.714398957
E116: 5.45 | F116: 1.33972706 | G116: 2.726598037
E117: 5.5 | F117: 1.291357987 | G117: 2.705512687
E118: 5.55 | F118: 1.27310018 | G118: 2.654697075
E119: 5.6 | F119: 1.288357773 | G119: 2.579236411
E120: 5.65 | F120: 1.338713375 | G120: 2.485387521
E121: 5.7 | F121: 1.423772827 | G121: 2.380154682
E122: 5.75 | F122: 1.541128243 | G122: 2.270827876
E123: 5.8 | F123: 1.686443035 | G123: 2.164512748
E124: 5.85 | F124: 1.853655058 | G124: 2.067681896
E125: 5.9 | F125: 2.035286764 | G125: 1.985775521
E126: 5.95 | F126: 2.222844571 | G126: 1.922876216
E127: 6 | F127: 2.407284079 | G127: 1.881477811
E128: 6.05 | F128: 2.579513638 | G128: 1.86236214
E129: 6.1 | F129: 2.730906264 | G129: 1.864590675
E130: 6.15 | F130: 2.853789278 | G130: 1.885610653
E131: 6.2 | F131: 2.941882275 | G131: 1.921468008
E132: 6.25 | F132: 2.990657074 | G132: 1.967112667
E133: 6.3 | F133: 2.997597937 | G133: 2.016775884
E134: 6.35 | F134: 2.962346389 | G134: 2.064394731
E135: 6.4 | F135: 2.886721854 | G135: 2.104055876
E136: =E135+$D$7 -> 6.45 | F136: =$D$3*COS($E$3*E136)*COS(E136)+$B$7 -> 2.774616903 | G136: =$D$3*COS($E$3*E136)*SIN(E136)+$C$7 -> 2.130429558
E137: 6.5 | F137: 2.631773405 | G137: 2.139165277
E138: 6.55 | F138: 2.465453113 | G138: 2.127223165
E139: 6.6 | F139: 2.284022532 | G139: 2.093119061
E140: 6.65 | F140: 2.096477076 | G140: 2.037066799
E141: 6.7 | F141: 1.911933092 | G141: 1.961007723
E142: 6.75 | F142: 1.73911819 | G142: 1.86852466
E143: 6.8 | F143: 1.585890284 | G143: 1.764644893
E144: 6.85 | F144: 1.458813855 | G144: 1.655543823
E145: 6.9 | F145: 1.362818336 | G145: 1.548167377
E146: 6.95 | F146: 1.300958357 | G146: 1.449796493
E147: 7 | F147: 1.274289267 | G147: 1.367580846
E148: 7.05 | F148: 1.281864189 | G148: 1.308071102
E149: 7.1 | F149: 1.320851395 | G149: 1.276779319
E150: 7.15 | F150: 1.386763392 | G150: 1.277795539
E151: 7.2 | F151: 1.473782268 | G151: 1.313485327
E152: 7.25 | F152: 1.575160046 | G152: 1.384288151
E153: 7.3 | F153: 1.683668282 | G153: 1.488630348
E154: 7.35 | F154: 1.792068273 | G154: 1.62295945
E155: 7.4 | F155: 1.893572175 | G155: 1.781899144
E156: 7.45 | F156: 1.982266123 | G156: 1.958516714
E157: 7.5 | F157: 2.053469 | G157: 2.144687856
E158: 7.55 | F158: 2.104004778 | G158: 2.331537639
E159: 7.6 | F159: 2.132371884 | G159: 2.509931667
E160: 7.65 | F160: 2.138799723 | G160: 2.670988248
E161: 7.7 | F161: 2.125189655 | G161: 2.80658098
E162: 7.75 | F162: 2.094945095 | G162: 2.909801632
E163: 7.8 | F163: 2.052702484 | G163: 2.975355472
E164: 7.85 | F164: 2.003981118 | G164: 2.99986525
E165: 7.9 | F165: 1.954775022 | G165: 2.982065488
E166: 7.95 | F166: 1.911113684 | G166: 2.922875363
E167: 8 | F167: 1.878620473 | G167: 2.825345761
E168: 8.05 | F168: 1.862097678 | G168: 2.694483727
E169: 8.1 | F169: 1.865165449 | G169: 2.536964881
E170: 8.15 | F170: 1.889978484 | G170: 2.360751168
E171: 8.2 | F171: 1.937039385 | G171: 2.174636961
E172: 8.25 | F172: 2.005121478 | G172: 1.987750817
E173: 8.3 | F173: 2.091306912 | G173: 1.809042776
E174: 8.35 | F174: 2.191138549 | G174: 1.646787845
E175: 8.4 | F175: 2.298876833 | G175: 1.50813519
E176: 8.45 | F176: 2.407846159 | G176: 1.398729644
E177: 8.5 | F177: 2.510849406 | G177: 1.322427571
E178: 8.55 | F178: 2.600624894 | G178: 1.281123254
E179: 8.6 | F179: 2.670317142 | G179: 1.274695118
E180: 8.65 | F180: 2.713931709 | G180: 1.301073694
E181: 8.7 | F181: 2.726745206 | G181: 1.356425742
E182: 8.75 | F182: 2.705644158 | G182: 1.435441833
E183: 8.8 | F183: 2.649370608 | G183: 1.531708415
E184: 8.85 | F184: 2.558658049 | G184: 1.638140281
E185: 8.9 | F185: 2.436247923 | G185: 1.747445787
E186: 8.95 | F186: 2.286784265 | G186: 1.85259536
E187: 9 | F187: 2.11659159 | G187: 1.947263798
E188: 9.05 | F188: 1.933348331 | G188: 2.026218777
E189: 9.1 | F189: 1.74567463 | G189: 2.085631486
E190: 9.15 | F190: 1.562658659 | G190: 2.123290423
E191: 9.2 | F191: 1.393349511 | G191: 2.138705606
E192: 9.25 | F192: 1.246246898 | G192: 2.133097456
E193: 9.3 | F193: 1.128818206 | G193: 2.109271982
E194: 9.35 | F194: 1.047071906 | G194: 2.071391136
E195: 9.4 | F195: 1.005213011 | G195: 2.024653839
E196: 9.45 | F196: 1.005401336 | G196: 1.974908873
E197: 9.5 | F197: 1.047627155 | G197: 1.928225146
E198: 9.55 | F198: 1.129711759 | G198: 1.890447518
E199: 9.6 | F199: 1.247432889 | G199: 1.86676732
E200: =E199+$D$7 -> 9.65 | F200: =$D$3*COS($E$3*E200)*COS(E200)+$B$7 -> 1.39476746 | G200: =$D$3*COS($E$3*E200)*SIN(E200)+$C$7 -> 1.861335746
E201: 9.7 | F201: 1.564236938 | G201: 1.87694559
... 75 more rows
